fUSD/lending_fUSD_20250120
["ID","MTS","AMOUNT","RATE_DAILY","PERIOD"]
[349643975,1737351033906,-500.0,0.00021079,2]
[349643976,1737351033916,-500.0,0.00021079,2]
[349643977,1737351033926,-409.8322991,0.00021079,2]
[349643978,1737351033939,-500.0,0.00021079,2]
[349643979,1737351033950,-590.47,0.00021079,2]
[349643980,1737351033960,-500.0,0.00021079,2]
[349643981,1737351033969,-500.0,0.00021079,2]
[349643982,1737351033981,-500.0,0.00021079,2]
[349643983,1737351033991,-500.0,0.00021079,2]
[349643984,1737351034001,-500.0,0.00021079,2]
[349643985,1737351034011,-502.16021359,0.00021079,2]
[349643986,1737351034021,-500.0,0.00021079,2]
[349643987,1737351034031,-506.19805776,0.00021079,2]
[349643988,1737351034041,-354.09213963,0.00021079,2]
[349643989,1737351034051,-500.0,0.00021079,2]
[349643990,1737351034061,-500.0,0.00021079,2]
[349643991,1737351034070,-500.0,0.00021079,2]
[349643992,1737351034080,-501.03422384,0.00021079,2]
[349643993,1737351034090,-500.0,0.00021079,2]
[349643994,1737351034099,-233.16889737,0.00021079,2]
[349643995,1737351034109,-500.0,0.00021079,2]
[349643996,1737351034119,-500.0,0.00021079,2]
[349643997,1737351034129,-500.0,0.00021079,2]
[349643998,1737351034139,-504.11492957,0.00021079,2]
[349643999,1737351034148,-384.11392869,0.00021079,2]
[349644000,1737351034158,-599.62,0.00021079,2]
[349644001,1737351034167,-500.0,0.00021079,2]
[349644002,1737351034177,-503.75850882,0.00021079,2]
[349644003,1737351034186,-500.0,0.00021079,2]
[349644004,1737351034195,-500.0,0.00021079,2]
[349644005,1737351034205,-489.34124037,0.00021079,2]
[349644006,1737351034214,-500.0,0.00021079,2]
[349644007,1737351034223,-500.0,0.00021079,2]
[349644008,1737351034233,-500.0,0.00021079,2]
[349644009,1737351034242,-608.03,0.00021079,2]
[349644010,1737351034252,-500.0,0.00021079,2]
[349644011,1737351034261,-500.0,0.00021079,2]
[349644012,1737351034271,-1358.86,0.00021079,2]
[349644013,1737351034280,-500.0,0.00021079,2]
[349644014,1737351034290,-500.0,0.00021079,2]
[349644015,1737351034299,-500.0,0.00021079,2]
[349644016,1737351034309,-585.66,0.00021079,2]
[349644017,1737351034319,-500.0,0.00021079,2]
[349644018,1737351034328,-628.28,0.00021079,2]
[349644019,1737351034338,-500.0,0.00021079,2]
[349644020,1737351034349,-500.0,0.00021079,2]
[349644021,1737351034359,-500.0,0.00021079,2]
[349644022,1737351034369,-585.72,0.00021079,2]
[349644023,1737351034379,-500.0,0.00021079,2]
[349644024,1737351034389,-657.35,0.00021079,2]
[349644025,1737351034398,-640.01,0.00021079,2]
[349644026,1737351034408,-745.47,0.00021079,2]
[349644027,1737351034417,-500.0,0.00021079,2]
[349644028,1737351034427,-500.0,0.00021079,2]
[349644029,1737351034436,-1090.86,0.00021079,2]
[349644030,1737351034445,-500.0,0.00021079,2]
[349644031,1737351034455,-500.0,0.00021079,2]
[349644032,1737351034465,-932.51,0.00021079,2]
[349644033,1737351034474,-722.02,0.00021079,2]
[349644034,1737351034484,-500.0,0.00021079,2]
[349644035,1737351034493,-500.0,0.00021079,2]
[349644036,1737351034503,-867.64,0.00021079,2]
[349644037,1737351034512,-355.1682021,0.00021079,2]
[349644038,1737351034522,-500.0,0.00021079,2]
[349644039,1737351034533,-512.06445552,0.00021079,2]
[349644040,1737351034543,-609.27,0.00021079,2]
[349644041,1737351034553,-968.55,0.00021079,2]
[349644042,1737351034562,-550.95,0.00021079,2]
[349644043,1737351034572,-500.0,0.00021079,2]
[349644044,1737351034582,-500.0,0.00021079,2]
[349644045,1737351034591,-500.0,0.00021079,2]
[349644046,1737351034603,-500.0,0.00021079,2]
[349644047,1737351034613,-500.0,0.00021079,2]
[349644048,1737351034623,-1316.08,0.00021079,2]
[349644049,1737351034633,-512.73076845,0.00021079,2]
[349644050,1737351034643,-537.59183584,0.00021079,2]
[349644051,1737351034655,-501.27469147,0.00021079,2]
[349644052,1737351034664,-509.5065087,0.00021079,2]
[349644053,1737351034674,-500.0,0.00021079,2]
[349644054,1737351034684,-886.36,0.00021079,2]
[349644055,1737351034694,-500.0,0.00021079,2]
[349644056,1737351034703,-500.0,0.00021079,2]
[349644057,1737351034713,-500.0,0.00021079,2]
[349644058,1737351034723,-515.57399364,0.00021079,2]
[349644059,1737351034732,-500.0,0.00021079,2]
[349644060,1737351034742,-500.0,0.00021079,2]
[349644061,1737351034751,-500.0,0.00021079,2]
[349644062,1737351034761,-528.75864495,0.00021079,2]
[349644063,1737351034771,-1269.25,0.00021079,2]
[349644064,1737351034780,-500.0,0.00021079,2]
[349644065,1737351034790,-837.86,0.00021079,2]
[349644066,1737351034799,-500.0,0.00021079,2]
[349644067,1737351034809,-329.78630056,0.00021079,2]
[349644068,1737351035280,-170.21369944,0.00021079,2]
[349644069,1737351035290,-500.0,0.00021079,2]
[349644070,1737351035299,-500.0,0.00021079,2]
[349644071,1737351035309,-500.0,0.00021079,2]
[349644072,1737351035318,-500.0,0.00021079,2]
[349644073,1737351035328,-500.0,0.00021079,2]
[349644074,1737351035337,-228.54809068,0.00021079,2]
[349644075,1737351035346,-500.0,0.00021079,2]
[349644076,1737351035357,-500.0,0.00021079,2]
[349644077,1737351035366,-500.0,0.00021079,2]
[349644078,1737351035376,-1653.91,0.00021079,2]
[349644079,1737351035386,-761.45,0.00021079,2]
[349644080,1737351035395,-439.18396784,0.00021079,2]
[349644081,1737351035404,-1922.9,0.00021079,2]
[349644082,1737351035413,-326.69723051,0.00021079,2]
[349644083,1737351035429,-726.35276949,0.00021079,2]
[349644084,1737351035438,-500.0,0.00021079,2]
[349644085,1737351035447,-2158.88,0.00021079,2]
[349644086,1737351035456,-500.0,0.00021079,2]
[349644087,1737351035465,-620.14,0.00021079,2]
[349644088,1737351035475,-500.0,0.00021079,2]
[349644089,1737351035484,-1056.59,0.00021079,2]
[349644090,1737351035493,-500.0,0.00021079,2]
[349644091,1737351035502,-868.61,0.00021079,2]
[349644092,1737351035511,-500.0,0.00021079,2]
[349644093,1737351035520,-646.11,0.00021079,2]
[349644094,1737351035530,-909.81,0.00021079,2]
[349644095,1737351035540,-500.0,0.00021079,2]
[349644096,1737351035549,-1435.46,0.00021079,2]
[349644097,1737351035558,-500.0,0.00021079,2]
[349644098,1737351035568,-718.51,0.00021079,2]
[349644099,1737351035578,-94.92390041,0.00021079,2]
[349644100,1737351036042,-872.42609959,0.00021079,2]
[349644101,1737351036053,-593.58,0.00021079,2]
[349644102,1737351036062,-135.67224674,0.00021079,2]
[349644103,1737351036101,-364.32775326,0.00021079,2]
[349644104,1737351036114,-1350.89,0.00021079,2]
[349644105,1737351036124,-500.0,0.00021079,2]
[349644106,1737351036134,-1102.74,0.00021079,2]
[349644107,1737351036144,-1173.03,0.00021079,2]
[349644108,1737351036154,-337.41525383,0.00021079,2]
[349644292,1737351038097,-543.21474617,0.00021079,2]
[349644294,1737351038111,-1213.47502525,0.00021079,2]
[349644296,1737351038122,-125.29497475,0.00021079,2]
[349644298,1737351038131,-500.0,0.00021079,2]
[349644300,1737351038141,-500.0,0.00021079,2]
[349644302,1737351038151,-1446.83,0.00021079,2]
[349644304,1737351038160,-1580.39,0.00021079,2]
[349644306,1737351038171,-363.10023865,0.00021079,2]
[349644308,1737351038180,-649.76,0.00021079,2]
[349644310,1737351038190,-500.0,0.00021079,2]
[349644312,1737351038200,-1086.46614835,0.00021079,2]
[349644315,1737351038212,-101.44385165,0.00021079,2]
[349644317,1737351038221,-500.0,0.00021079,2]
[349644319,1737351038231,-674.38,0.00021079,2]
[349644321,1737351038241,-500.0,0.00021079,2]
[349644323,1737351038250,-749.27,0.00021079,2]
[349644325,1737351038260,-1239.61480762,0.00021079,2]
[349644510,1737351040154,-814.85,0.00021078,2]
[349644512,1737351040164,-209.7,0.00021078,2]
[349644534,1737351040374,-2149.33,0.00021078,2]
[349644537,1737351040384,-500.0,0.00021079,2]
[349644538,1737351040394,-576.81,0.00021079,2]
[349644540,1737351040404,-866.54,0.00021079,2]
[349644542,1737351040413,-500.0,0.00021079,2]
[349644544,1737351040423,-4080.78,0.00021079,2]
[349644546,1737351040432,-1858.93,0.00021079,2]
[349644548,1737351040441,-773.9776,0.00021079,2]
[349644557,1737351040516,-20.81728974,0.00021079,2]
[349644836,1737351042954,-164.29,0.00020545,2]
[349644838,1737351042964,-1414.97,0.00021078,2]
[349644840,1737351042974,-675.66511026,0.00021079,2]
[349644842,1737351042985,-7545.42,0.00021079,2]
[349644844,1737351042994,-907.5,0.00021079,2]
[349644846,1737351043003,-4123.52,0.00021079,2]
[349644848,1737351043012,-1171.92,0.00021079,2]
[349644850,1737351043023,-500.0,0.00021079,2]
[349644852,1737351043033,-834.63,0.00021079,2]
[349644854,1737351043042,-2855.59,0.00021079,2]
[349644856,1737351043051,-500.0,0.00021079,2]
[349644858,1737351043060,-764.89,0.00021079,2]
[349644860,1737351043069,-3332.60488963,0.00021079,2]
[349644863,1737351043092,-1085.90511037,0.00021079,2]
[349644865,1737351043103,-903.41,0.00021079,2]
[349644867,1737351043114,-558.03,0.00021079,2]
[349644869,1737351043123,-500.0,0.00021079,2]
[349644872,1737351043133,-500.0,0.00021079,2]
[349644874,1737351043142,-1397.6,0.00021079,2]
[349644875,1737351043151,-792.61,0.00021079,2]
[349644878,1737351043161,-500.0,0.00021079,2]
[349644879,1737351043171,-4307.94,0.00021079,2]
[349644881,1737351043180,-500.0,0.00021079,2]
[349644883,1737351043189,-626.81,0.00021079,2]
[349644885,1737351043198,-500.0,0.00021079,2]
[349644888,1737351043208,-501.87557155,0.00021079,2]
[349644890,1737351043217,-500.0,0.00021079,2]
[349644891,1737351043226,-722.0,0.00021079,2]
[349644894,1737351043236,-500.0,0.00021079,2]
[349644895,1737351043245,-500.0,0.00021079,2]
[349644897,1737351043254,-8350.94,0.00021079,2]
[349644899,1737351043264,-500.0,0.00021079,2]
[349644901,1737351043273,-1274.04,0.00021079,2]
[349644903,1737351043282,-2324.59,0.00021079,2]
[349644905,1737351043291,-2500.58,0.00021079,2]
[349644907,1737351043300,-500.0,0.00021079,2]
[349644909,1737351043310,-585.77,0.00021079,2]
[349644911,1737351043319,-708.14,0.00021079,2]
[349644913,1737351043328,-664.14,0.00021079,2]
[349644915,1737351043338,-3200.35,0.00021079,2]
[349644917,1737351043347,-500.0,0.00021079,2]
[349644919,1737351043358,-2938.31,0.00021079,2]
[349644921,1737351043367,-8027.77,0.00021079,2]
[349644923,1737351043376,-500.0,0.00021079,2]
[349644925,1737351043385,-1138.42,0.00021079,2]
[349644927,1737351043395,-1168.51,0.00021079,2]
[349644929,1737351043404,-500.0,0.00021079,2]
[349644931,1737351043413,-500.0,0.00021079,2]
[349644933,1737351043422,-1468.78,0.00021079,2]
[349644935,1737351043431,-570.59,0.00021079,2]
[349644937,1737351043440,-1521.49,0.00021079,2]
[349644939,1737351043449,-500.0,0.00021079,2]
[349644941,1737351043458,-500.0,0.00021079,2]
[349644943,1737351043468,-754.78,0.00021079,2]
[349644945,1737351043477,-746.09,0.00021079,2]
[349644947,1737351043486,-1063.86,0.00021079,2]
[349644949,1737351043495,-500.0,0.00021079,2]
[349644951,1737351043504,-531.07,0.00021079,2]
[349644953,1737351043513,-780.49,0.00021079,2]
[349644955,1737351043522,-500.0,0.00021079,2]
[349644957,1737351043531,-2488.63,0.00021079,2]
[349644959,1737351043541,-500.0,0.00021079,2]
[349644961,1737351043550,-500.0,0.00021079,2]
[349644963,1737351043559,-500.0,0.00021079,2]
[349644965,1737351043568,-4849.1,0.00021079,2]
[349644967,1737351043577,-500.0,0.00021079,2]
[349644969,1737351043586,-1882.05,0.00021079,2]
[349644971,1737351043595,-1413.69,0.00021079,2]
[349644973,1737351043605,-2210.42,0.00021079,2]
[349644975,1737351043614,-582.62,0.00021079,2]
[349644977,1737351043626,-500.0,0.00021079,2]
[349644979,1737351043636,-500.0,0.00021079,2]
[349644981,1737351043646,-839.38,0.00021079,2]
[349644983,1737351043655,-500.0,0.00021079,2]
[349644985,1737351043664,-2126.73,0.00021079,2]
[349644987,1737351043673,-608.96,0.00021079,2]
[349644989,1737351043683,-579.66,0.00021079,2]
[349644991,1737351043692,-1009.83,0.00021079,2]
[349644993,1737351043704,-500.0,0.00021079,2]
[349644995,1737351043713,-500.0,0.00021079,2]
[349644997,1737351043722,-500.0,0.00021079,2]
[349644999,1737351043730,-669.87,0.00021079,2]
[349645001,1737351043740,-500.0,0.00021079,2]
[349645003,1737351043749,-500.0,0.00021079,2]
[349645005,1737351043758,-500.0,0.00021079,2]
[349645007,1737351043767,-500.0,0.00021079,2]
[349645009,1737351043776,-500.0,0.00021079,2]
[349645011,1737351043785,-500.0,0.00021079,2]
[349645013,1737351043794,-1085.96,0.00021079,2]
[349645015,1737351043803,-500.0,0.00021079,2]
[349645017,1737351043812,-500.0,0.00021079,2]
[349645019,1737351043821,-500.0,0.00021079,2]
[349645021,1737351043830,-500.0,0.00021079,2]
[349645023,1737351043839,-500.0,0.00021079,2]
[349645025,1737351043848,-912.52,0.00021079,2]
[349645027,1737351043860,-500.0,0.00021079,2]
[349645029,1737351043869,-500.0,0.00021079,2]
[349645031,1737351043878,-500.0,0.00021079,2]
[349645033,1737351043887,-1134.05,0.00021079,2]
[349645035,1737351043896,-1303.38,0.00021079,2]
[349645037,1737351043905,-794.99,0.00021079,2]
[349645039,1737351043914,-1098.65,0.00021079,2]
[349645041,1737351043923,-2097.33,0.00021079,2]
[349645043,1737351043931,-1080.86,0.00021079,2]
[349645045,1737351043940,-2151.03,0.00021079,2]
[349645047,1737351043954,-781.02,0.00021079,2]
[349645049,1737351043963,-342280.97001424,0.0002108,2]
[349645248,1737351046021,-500.0,0.00021079,2]
[349645251,1737351046031,-10526.494388,0.0002108,2]
[349645253,1737351046043,-4042.75400725,0.0002108,2]
[349645258,1737351046089,-84.43784441,0.0002108,2]
[349645260,1737351046101,-1645.21441551,0.0002108,2]
[349645263,1737351046118,-2626.4304143,0.0002108,2]
[349645267,1737351046198,-3634.80479908,0.0002108,2]
[349645268,1737351046210,-6851.87807044,0.0002108,2]
[349645538,1737351072091,500.0,0.00019164,2]
[349645539,1737351108646,500.0,0.00019164,2]
[349645543,1737351936161,-608.76,0.00018217,2]
[349645544,1737351936186,-938.25946685,0.000196,2]
[349645546,1737351947813,154.81,0.00010137,2]
[349645547,1737351955097,-154.81,0.00019198,2]
[349645548,1737351955119,-458.74053315,0.000196,2]
[349645549,1737351955140,-213.246625,0.00019791,14]
[349645550,1737351955161,-162.2,0.00019873,2]
[349645551,1737351955182,-250.0,0.00019875,2]
[349645552,1737351955210,-167.96,0.00020013,2]
[349645553,1737351955230,-56.13394925,0.0002004,2]
[349645554,1737352029095,-500.0,0.00018164,2]
[349645555,1737352029116,-357.64605075,0.0002004,2]
[349645556,1737352029137,-1000.0,0.00020059,2]
[349645557,1737352029158,-157.41389107,0.00020239,2]
[349645558,1737352145128,-500.0,0.00018164,2]
[349645559,1737352145149,-402.182674,0.00019178,7]
[349645560,1737352146300,500.0,0.00018164,2]
[349645566,1737352232129,-333.21960545,0.00019899,2]
[349645567,1737352232140,-266.78039455,0.00019899,2]
[349645568,1737352232153,-3189.24712418,0.00019899,2]
[349645569,1737352232162,-250.0,0.00019977,2]
[349645570,1737352232171,-203.42,0.00019999,2]
[349645571,1737352232182,-24.17610893,0.00020239,2]
[349645572,1737352232192,-591.56,0.00020257,30]
[349645573,1737352232202,-1704.24,0.00020288,2]
[349645574,1737352232212,-1852.42,0.00020318,2]
[349645575,1737352232224,-500.0,0.00020356,2]
[349645576,1737352232234,-395.48180449,0.00020356,2]
[349645577,1737352232244,-608.76,0.00020481,2]
[349645578,1737352232253,-162.89,0.00020549,2]
[349645579,1737352232264,-152.734543,0.00020671,14]
[349645580,1737352232276,-4230.72773904,0.00020802,2]
[349645581,1737352232287,-4230.72773904,0.00020829,2]
[349645582,1737352232296,-2427.49386,0.0002087,2]
[349645583,1737352232306,-4230.72773904,0.00020895,2]
[349645584,1737352232315,-938.641,0.00020899,2]
[349645585,1737352232326,-559.0,0.00020899,2]
[349645586,1737352232335,-27647.60361838,0.000209,2]
[349645587,1737352232449,-1588.71795341,0.000209,2]
[349645588,1737352232464,-6288.55997168,0.000209,2]
[349645589,1737352232484,-335.08475,0.000209,2]
[349645590,1737352232501,-1576.73753196,0.000209,2]
[349645591,1737352232513,-648.899979,0.000209,2]
[349645605,1737352238044,-994.11000008,0.000209,2]
[349645606,1737352238056,-141259.466925,0.000209,2]
[349645607,1737352238067,-9269.21825835,0.000209,2]
[349645608,1737352238079,-8300.0,0.000209,2]
[349645609,1737352238279,-171.89105197,0.000209,2]
[349645614,1737352240088,-322.310568,0.000209,2]
[349645615,1737352240362,-266.75347285,0.000209,2]
[349645616,1737352240420,-668.57399671,0.000209,2]
[349645623,1737352243875,-1343.5365274,0.000209,2]
[349645624,1737352243884,-209.62192729,0.000209,2]
[349645625,1737352243894,-114.30882225,0.00020909,2]
[349645626,1737352244117,-4116.41891679,0.00020909,2]
[349645627,1737352244127,-4230.72773904,0.0002094,2]
[349645628,1737352244136,-209.62192724,0.00020971,2]
[349645629,1737352244146,-1603.86,0.00020977,2]
[349645630,1737352244155,-1427.85,0.00020977,2]
[349645631,1737352244164,-500.0,0.00020977,2]
[349645632,1737352244173,-1976.76,0.00020977,2]
[349645633,1737352244183,-1175.28,0.00020977,2]
[349645634,1737352244194,-2228.51,0.00020977,2]
[349645635,1737352244203,-2267.96,0.00020977,2]
[349645636,1737352244212,-690.13,0.00020977,2]
[349645638,1737352244222,-3061.37,0.00020977,2]
[349645640,1737352244231,-677.48,0.00020977,2]
[349645642,1737352244241,-500.0,0.00020977,2]
[349645644,1737352244250,-1479.79,0.00020977,2]
[349645645,1737352244259,-1774.97,0.00020977,2]
[349645646,1737352244269,-3722.35,0.00020977,2]
[349645647,1737352244280,-4664.64,0.00020977,2]
[349645648,1737352244289,-1552.89,0.00020977,2]
[349645649,1737352244298,-706.49,0.00020977,2]
[349645650,1737352244307,-575.07,0.00020977,2]
[349645651,1737352244316,-1898.02,0.00020977,2]
[349645652,1737352244326,-958.83,0.00020977,2]
[349645654,1737352244335,-500.0,0.00020977,2]
[349645655,1737352244345,-1853.1,0.00020977,2]
[349645656,1737352244358,-614.8,0.00020977,2]
[349645657,1737352244373,-500.0,0.00020977,2]
[349645658,1737352244383,-780.89,0.00020977,2]
[349645659,1737352244392,-1019.58,0.00020977,2]
[349645660,1737352244401,-500.0,0.00020977,2]
[349645661,1737352244411,-2857.1,0.00020977,2]
[349645662,1737352244420,-1726.38,0.00020977,2]
[349645663,1737352244429,-5562.86,0.00020977,2]
[349645664,1737352244439,-1356.01,0.00020977,2]
[349645665,1737352244448,-806.67,0.00020977,2]
[349645666,1737352244458,-500.0,0.00020977,2]
[349645667,1737352244467,-3965.43,0.00020977,2]
[349645668,1737352244476,-595.49,0.00020977,2]
[349645669,1737352244486,-500.0,0.00020977,2]
[349645670,1737352244498,-500.0,0.00020978,2]
[349645671,1737352244513,-500.0,0.00020978,2]
[349645672,1737352244522,-500.0,0.00020978,2]
[349645673,1737352244532,-500.0,0.00020978,2]
[349645674,1737352244542,-500.0,0.00020978,2]
[349645675,1737352244551,-500.0,0.00020978,2]
[349645676,1737352244561,-500.0,0.00020978,2]
[349645677,1737352244571,-500.0,0.00020978,2]
[349645678,1737352244580,-500.0,0.00020978,2]
[349645679,1737352244589,-500.0,0.00020978,2]
[349645680,1737352244599,-500.0,0.00020978,2]
[349645681,1737352244608,-500.0,0.00020978,2]
[349645683,1737352244617,-500.0,0.00020978,2]
[349645685,1737352244626,-500.0,0.00020978,2]
[349645687,1737352244635,-500.0,0.00020978,2]
[349645689,1737352244645,-500.0,0.00020978,2]
[349645691,1737352244655,-500.0,0.00020978,2]
[349645693,1737352244664,-500.0,0.00020978,2]
[349645695,1737352244673,-500.0,0.00020978,2]
[349645696,1737352244683,-500.0,0.00020978,2]
[349645697,1737352244694,-500.0,0.00020978,2]
[349645698,1737352244703,-500.0,0.00020978,2]
[349645699,1737352244713,-500.0,0.00020978,2]
[349645700,1737352244723,-1876.32,0.00020978,2]
[349645701,1737352244732,-516.25286791,0.00020978,2]
[349645702,1737352244742,-635.46,0.00020978,2]
[349645703,1737352244751,-500.0,0.00020978,2]
[349645704,1737352244761,-507.10074861,0.00020978,2]
[349645705,1737352244770,-2047.74,0.00020978,2]
[349645706,1737352244780,-500.0,0.00020978,2]
[349645707,1737352244789,-506.31274896,0.00020978,2]
[349645708,1737352244799,-512.02591586,0.00020978,2]
[349645709,1737352244808,-200.0,0.00020978,2]
[349645710,1737352244817,-500.0,0.00020978,2]
[349645711,1737352244827,-500.0,0.00020978,2]
[349645712,1737352244836,-2015.978215,0.00020978,2]
[349645713,1737352244846,-506.64150504,0.00020978,2]
[349645714,1737352244856,-515.62567333,0.00020978,2]
[349645715,1737352244865,-500.0,0.00020978,2]
[349645716,1737352244875,-154.764776,0.00020978,2]
[349645717,1737352244884,-500.0,0.00020978,2]
[349645718,1737352244894,-500.0,0.00020978,2]
[349645719,1737352244903,-2695.9,0.00020978,2]
[349645720,1737352244913,-500.0,0.00020978,2]
[349645721,1737352244923,-292.15543695,0.00020978,2]
[349645722,1737352244933,-500.0,0.00020978,2]
[349645723,1737352244943,-500.0,0.00020978,2]
[349645724,1737352244952,-503.10646176,0.00020978,2]
[349645725,1737352244962,-500.0,0.00020978,2]
[349645726,1737352244971,-500.0,0.00020978,2]
[349645727,1737352244981,-500.0,0.00020978,2]
[349645728,1737352244990,-512.99303864,0.00020978,2]
[349645729,1737352245000,-743.98,0.00020978,2]
[349645730,1737352245010,-71.93467157,0.00020978,2]
[349645731,1737352245531,-691.70560032,0.00020978,2]
[349645736,1737352245954,-771.869074,0.00020977,2]
[349645737,1737352245964,-1088.20972811,0.00020978,2]
[349645738,1737352245974,-631.48,0.00020978,2]
[349645740,1737352245984,-501.97,0.00020978,2]
[349645743,1737352245997,-2188.11,0.00020978,2]
[349645745,1737352246007,-500.0,0.00020978,2]
[349645747,1737352246016,-1082.94,0.00020978,2]
[349645749,1737352246025,-913.16819676,0.00020978,2]
[349645751,1737352246066,-965.77180324,0.00020978,2]
[349645752,1737352246076,-500.0,0.00020978,2]
[349645753,1737352246086,-620.06,0.00020978,2]
[349645754,1737352246096,-269.54154683,0.00020978,2]
[349645755,1737352246266,-230.45845317,0.00020978,2]
[349645756,1737352246278,-1209.94156603,0.00020978,2]
[349645757,1737352246294,-1100.23843397,0.00020978,2]
[349645758,1737352246304,-500.0,0.00020978,2]
[349645759,1737352246315,-500.0,0.00020978,2]
[349645760,1737352246326,-500.0,0.00020978,2]
[349645761,1737352246336,-565.87,0.00020978,2]
[349645762,1737352246346,-179.58642603,0.00020978,2]
[349645765,1737352271180,500.0,0.00018164,2]
[349645768,1737352791083,157.91,0.00010137,2]
[349645769,1737352992917,2025.330574,0.00022,120]
[349645770,1737353138382,-157.91,0.00017599,2]
[349645771,1737353138404,-426.61,0.00018215,7]
[349645772,1737353138426,-582.63,0.00018215,2]
[349645773,1737353138449,-203.42,0.00019772,2]
[349645774,1737353138471,-129.57355058,0.00019846,2]
[349645775,1737353241097,-120.42644942,0.00019846,2]
[349645776,1737353241119,-158.13844959,0.00019925,2]
[349645777,1737353241140,-250.0,0.00019926,2]
[349645778,1737353241160,-1573.47,0.00019991,2]
[349645779,1737353241187,-162.2,0.00020025,2]
[349645780,1737353241209,-1000.0,0.00020091,2]
[349645781,1737353241231,-440.83,0.00020107,2]
[349645782,1737353241252,-1134.29,0.00020121,2]
[349645783,1737353241273,-2101.93011187,0.0002015,2]
[349645784,1737353249112,-972.13146859,0.0002015,2]
[349645785,1737353419301,1490.26054377,0.000172,5]
[349645786,1737353419324,1521.5736184,0.000172,5]
[349645787,1737353419345,80.16583783,0.000172,5]
[349645794,1737353432483,-23.93841954,0.0002015,2]
[349645795,1737353432495,-375.86859846,0.00020324,30]
[349645796,1737353432520,-186.11140154,0.00020324,30]
[349645797,1737353432543,-360.15463466,0.00020356,2]
[349645798,1737353432567,-73.33187182,0.00020356,2]
[349645799,1737353432588,-772.56,0.000204,2]
[349645800,1737353432609,-11597.30812818,0.000208,2]
[349645801,1737353432634,-1573.46568944,0.000208,2]
[349645802,1737353432660,-3752.05958055,0.000208,2]
[349645805,1737353433103,-409.55507302,0.000208,2]
[349645806,1737353433119,-310.83615298,0.000208,2]
[349645807,1737353433136,-741.03060137,0.000208,2]
[349645808,1737353434897,553.49,0.00018099,2]
[349645809,1737353438238,-553.49,0.00020363,2]
[349645810,1737353438249,-6615.74477446,0.000208,2]
[349645811,1737353438260,-154.61801279,0.00020876,2]
[349645812,1737353438270,-377.56138793,0.00020877,2]
[349645813,1737353438280,-446.111,0.00020877,2]
[349645814,1737353438290,-750.913,0.00020877,2]
[349645815,1737353438300,-5000.0,0.00020878,2]
[349645816,1737353438310,-31687.901,0.00020878,2]
[349645817,1737353438320,-416.6583,0.00020879,2]
[349645818,1737353438330,-209.62192724,0.000209,2]
[349645819,1737353438340,-166.0,0.00020906,2]
[349645820,1737353438350,-1894.4,0.00020975,2]
[349645821,1737353438360,-2173.46,0.00020975,2]
[349645822,1737353438370,-1537.03,0.00020975,2]
[349645823,1737353438380,-2933.81,0.00020975,2]
[349645824,1737353438390,-1368.35,0.00020975,2]
[349645825,1737353438400,-500.0,0.00020975,2]
[349645826,1737353438409,-1126.31,0.00020975,2]
[349645827,1737353438419,-1701.02,0.00020975,2]